fUSD/lending_fUSD_20241111
["ID","MTS","AMOUNT","RATE_DAILY","PERIOD"]
[341927690,1731303032128,-500.0,0.00014898,2]
[341927692,1731303032137,-500.0,0.00014898,2]
[341927694,1731303032146,-500.0,0.00014898,2]
[341927696,1731303032155,-595.9,0.00014898,2]
[341927698,1731303032165,-500.0,0.00014898,2]
[341927700,1731303032174,-617.56482569,0.00014898,2]
[341927702,1731303032184,-646.84724298,0.00014898,2]
[341927704,1731303032193,-500.0,0.00014898,2]
[341927706,1731303032202,-500.0,0.00014898,2]
[341927708,1731303032228,-449.09777633,0.00014898,2]
[341927710,1731303032238,-500.0,0.00014898,2]
[341927712,1731303032248,-365.51346296,0.00014898,2]
[341927714,1731303032258,-151.0,0.00014898,2]
[341927716,1731303032268,-459.67561444,0.00014898,2]
[341927718,1731303032278,-500.0,0.00014898,2]
[341927720,1731303032288,-533.67193649,0.00014898,2]
[341927722,1731303032298,-500.0,0.00014898,2]
[341927724,1731303032307,-411.21640338,0.00014898,2]
[341927727,1731303032325,-88.78359662,0.00014898,2]
[341927729,1731303032335,-190.13185246,0.00014898,2]
[341927731,1731303032346,-309.86814754,0.00014898,2]
[341927733,1731303032356,-140.93416809,0.00014898,2]
[341927787,1731303037464,-575.81133876,0.00014855,2]
[341927788,1731303037474,-199.07009108,0.00014866,2]
[341927789,1731303037487,-376.74124768,0.00014866,2]
[341927790,1731303037500,-359.06583191,0.00014898,2]
[341927791,1731303037510,-486.98656284,0.00014898,2]
[341927792,1731303037519,-621.32,0.00014898,2]
[341927793,1731303037529,-500.0,0.00014898,2]
[341927794,1731303037538,-500.0,0.00014898,2]
[341927795,1731303037547,-578.0,0.00014898,2]
[341927796,1731303037556,-500.0,0.00014898,2]
[341927797,1731303037566,-500.0,0.00014898,2]
[341927798,1731303037771,-500.0,0.00014898,2]
[341927799,1731303037781,-500.0,0.00014898,2]
[341927800,1731303037791,-500.0,0.00014898,2]
[341927801,1731303037804,-500.0,0.00014898,2]
[341927803,1731303037814,-500.0,0.00014898,2]
[341927804,1731303037823,-500.0,0.00014898,2]
[341927806,1731303037832,-500.0,0.00014898,2]
[341927807,1731303037842,-457.25187858,0.00014898,2]
[341927808,1731303037851,-500.0,0.00014898,2]
[341927809,1731303037861,-32.07860699,0.00014898,2]
[341927810,1731303037911,-486.43943985,0.00014898,2]
[341927811,1731303037920,-140.06856015,0.00014898,2]
[341927813,1731303037939,-359.93143985,0.00014898,2]
[341927814,1731303037948,-375.32822886,0.00014898,2]
[341927828,1731303039374,-124.67177114,0.00014898,2]
[341927829,1731303039383,-481.38522614,0.00014898,2]
[341927830,1731303039392,-500.0,0.00014898,2]
[341927831,1731303039401,-500.0,0.00014898,2]
[341927832,1731303039410,-500.0,0.00014898,2]
[341927833,1731303039419,-534.73573119,0.00014898,2]
[341927834,1731303039428,-516.12935308,0.00014898,2]
[341927835,1731303039437,-533.62126526,0.00014898,2]
[341927836,1731303039446,-500.0,0.00014898,2]
[341927837,1731303039455,-173.55539455,0.00014898,2]
[341927838,1731303039465,-500.0,0.00014898,2]
[341927839,1731303039475,-500.0,0.00014898,2]
[341927840,1731303039484,-258.32001051,0.00014898,2]
[341927841,1731303039495,-500.0,0.00014898,2]
[341927842,1731303039504,-516.0,0.00014898,2]
[341927843,1731303039514,-506.45241054,0.00014898,2]
[341927844,1731303039523,-522.11,0.00014898,2]
[341927845,1731303039531,-500.0,0.00014898,2]
[341927846,1731303039541,-500.0,0.00014898,2]
[341927847,1731303039550,-500.0,0.00014898,2]
[341927848,1731303039559,-478.57692635,0.00014898,2]
[341927849,1731303039569,-512.51742286,0.00014898,2]
[341927850,1731303039578,-504.90647922,0.00014898,2]
[341927851,1731303039587,-510.23918198,0.00014898,2]
[341927852,1731303039596,-500.0,0.00014898,2]
[341927853,1731303039605,-375.68966243,0.00014898,2]
[341927854,1731303039614,-500.0,0.00014898,2]
[341927855,1731303039624,-500.0,0.00014898,2]
[341927856,1731303039632,-171.10493663,0.00014898,2]
[341927857,1731303039641,-500.0,0.00014898,2]
[341927858,1731303039651,-500.0,0.00014898,2]
[341927859,1731303039659,-500.0,0.00014898,2]
[341927860,1731303039668,-1610.27,0.00014898,2]
[341927861,1731303039677,-1610.27,0.00014898,2]
[341927862,1731303039686,-1610.27,0.00014898,2]
[341927863,1731303039695,-513.5,0.00014898,2]
[341927864,1731303039704,-500.67727882,0.00014898,2]
[341927865,1731303039713,-500.0,0.00014898,2]
[341927866,1731303039723,-500.0,0.00014898,2]
[341927867,1731303039732,-500.0,0.00014898,2]
[341927868,1731303039740,-500.0,0.00014898,2]
[341927869,1731303039752,-500.0,0.00014898,2]
[341927870,1731303039762,-9152.9,0.00014898,2]
[341927871,1731303039771,-500.0,0.00014898,2]
[341927872,1731303039781,-500.0,0.00014898,2]
[341927873,1731303039790,-500.0,0.00014898,2]
[341927874,1731303039804,-175.01323562,0.00014898,2]
[341927875,1731303039813,-500.0,0.00014898,2]
[341927876,1731303039822,-500.0,0.00014898,2]
[341927877,1731303039831,-500.0,0.00014898,2]
[341927878,1731303039843,-513.43731045,0.00014898,2]
[341927879,1731303039852,-500.0,0.00014898,2]
[341927880,1731303039861,-564.17570249,0.00014898,2]
[341927881,1731303039872,-500.0,0.00014898,2]
[341927882,1731303039882,-500.0,0.00014898,2]
[341927883,1731303039893,-500.0,0.00014898,2]
[341927884,1731303039902,-500.0,0.00014898,2]
[341927885,1731303039911,-500.0,0.00014898,2]
[341927886,1731303039921,-500.0,0.00014898,2]
[341927887,1731303039931,-500.0,0.00014898,2]
[341927888,1731303039940,-500.0,0.00014898,2]
[341927889,1731303039949,-500.0,0.00014898,2]
[341927890,1731303039958,-500.0,0.00014898,2]
[341927891,1731303039968,-236.69880256,0.00014898,2]
[341927892,1731303039976,-500.0,0.00014898,2]
[341927893,1731303039985,-500.0,0.00014898,2]
[341927894,1731303039997,-500.0,0.00014898,2]
[341927895,1731303040006,-280.25476751,0.00014898,2]
[341927896,1731303040015,-500.0,0.00014898,2]
[341927897,1731303040024,-500.0,0.00014898,2]
[341927898,1731303040034,-500.0,0.00014898,2]
[341927899,1731303040043,-500.0,0.00014898,2]
[341927900,1731303040052,-500.0,0.00014898,2]
[341927901,1731303040062,-500.0,0.00014898,2]
[341927902,1731303040072,-500.0,0.00014898,2]
[341927903,1731303040081,-500.0,0.00014898,2]
[341927904,1731303040090,-500.0,0.00014898,2]
[341927905,1731303040099,-500.0,0.00014898,2]
[341927906,1731303040109,-500.0,0.00014898,2]
[341927907,1731303040118,-500.0,0.00014898,2]
[341927908,1731303040127,-500.0,0.00014898,2]
[341927909,1731303040137,-1939.93,0.00014898,2]
[341927910,1731303040146,-1939.93,0.00014898,2]
[341927911,1731303040155,-1939.93,0.00014898,2]
[341927912,1731303040165,-500.0,0.00014898,2]
[341927913,1731303040174,-505.4683249,0.00014898,2]
[341927914,1731303040183,-500.0,0.00014898,2]
[341927915,1731303040192,-500.0,0.00014898,2]
[341927916,1731303040202,-500.0,0.00014898,2]
[341927917,1731303040211,-500.0,0.00014898,2]
[341927918,1731303040220,-500.0,0.00014898,2]
[341927919,1731303040230,-567.46,0.00014898,2]
[341927920,1731303040240,-500.0,0.00014898,2]
[341927921,1731303040253,-500.0,0.00014898,2]
[341927922,1731303040266,-456.42653158,0.00014898,2]
[341927923,1731303040275,-500.0,0.00014898,2]
[341927924,1731303040285,-500.0,0.00014898,2]
[341927925,1731303040294,-500.0,0.00014898,2]
[341927926,1731303040303,-500.0,0.00014898,2]
[341927927,1731303040313,-619.58072961,0.00014898,2]
[341927928,1731303040321,-498.0,0.00014898,2]
[341927929,1731303040330,-500.0,0.00014898,2]
[341927930,1731303040340,-500.0,0.00014898,2]
[341927931,1731303040349,-7498.68,0.00014898,2]
[341927932,1731303040357,-500.0,0.00014898,2]
[341927933,1731303040366,-400.0,0.00014898,2]
[341927934,1731303040376,-400.0,0.00014899,2]
[341927935,1731303040385,-151.0,0.00014899,2]
[341927936,1731303040394,-151.0,0.00014899,2]
[341927937,1731303040403,-158.146559,0.00014899,2]
[341927938,1731303040412,-151.0,0.00014899,2]
[341927939,1731303040422,-155.644316,0.00014899,2]
[341927940,1731303040431,-151.0,0.00014899,2]
[341927941,1731303040440,-273.382928,0.00014899,2]
[341927942,1731303040449,-210.632629,0.00014899,2]
[341927943,1731303040459,-210.632629,0.00014899,2]
[341927944,1731303040469,-500.0,0.00014899,2]
[341927945,1731303040478,-500.0,0.00014899,2]
[341927946,1731303040487,-500.0,0.00014899,2]
[341927947,1731303040500,-2364.3292318,0.00014899,2]
[341927948,1731303040510,-151.0,0.00014899,2]
[341927949,1731303040519,-1196.0,0.00014899,2]
[341927950,1731303040529,-151.0,0.00014899,2]
[341927951,1731303040538,-151.0,0.00014899,2]
[341927952,1731303040547,-500.0,0.00014899,2]
[341927953,1731303040557,-500.0,0.00014899,2]
[341927954,1731303040566,-151.0,0.00014899,2]
[341927955,1731303040575,-505.74639957,0.00014899,2]
[341927956,1731303040584,-151.0,0.00014899,2]
[341927957,1731303040594,-151.0,0.00014899,2]
[341927958,1731303040603,-500.0,0.00014899,2]
[341927959,1731303040612,-500.0,0.00014899,2]
[341927960,1731303040621,-500.0,0.00014899,2]
[341927961,1731303040631,-500.0,0.00014899,2]
[341927962,1731303040640,-1109.38,0.00014899,2]
[341927963,1731303040649,-500.0,0.00014899,2]
[341927964,1731303040658,-500.0,0.00014899,2]
[341927965,1731303040667,-500.0,0.00014899,2]
[341927966,1731303040676,-295.70969047,0.00014899,2]
[341927967,1731303040685,-500.0,0.00014899,2]
[341927968,1731303040694,-500.0,0.00014899,2]
[341927969,1731303040703,-151.0,0.00014899,2]
[341927970,1731303040713,-603.14121952,0.00014899,2]
[341927971,1731303040721,-151.0,0.00014899,2]
[341927972,1731303040730,-151.0,0.00014899,2]
[341927973,1731303040739,-500.0,0.00014899,2]
[341927974,1731303040751,-500.0,0.00014899,2]
[341927975,1731303040760,-605.47984106,0.00014899,2]
[341927976,1731303040770,-500.0,0.00014899,2]
[341927977,1731303040779,-500.0,0.00014899,2]
[341927978,1731303040787,-500.0,0.00014899,2]
[341927979,1731303040797,-151.0,0.00014899,2]
[341927980,1731303040809,-151.0,0.00014899,2]
[341927981,1731303040821,-151.0,0.00014899,2]
[341927982,1731303040834,-151.0,0.00014899,2]
[341927983,1731303040846,-151.0,0.00014899,2]
[341927984,1731303040859,-165.378923,0.00014899,2]
[341927985,1731303040871,-150.99464443,0.00014899,2]
[341927986,1731303040881,-151.0,0.00014899,2]
[341927987,1731303040893,-151.0,0.00014899,2]
[341927988,1731303040904,-151.0,0.00014899,2]
[341927989,1731303040915,-414.878586,0.00014899,2]
[341927990,1731303040926,-414.878586,0.00014899,2]
[341927991,1731303040938,-414.878586,0.00014899,2]
[341927992,1731303040948,-500.0,0.00014899,2]
[341927993,1731303040960,-500.0,0.00014899,2]
[341927994,1731303040972,-414.878586,0.00014899,2]
[341927995,1731303040984,-414.878586,0.00014899,2]
[341927996,1731303040997,-414.878586,0.00014899,2]
[341927997,1731303041009,-500.0,0.00014899,2]
[341927998,1731303041021,-501.9082067,0.00014899,2]
[341927999,1731303041032,-500.0,0.00014899,2]
[341928000,1731303041043,-500.0,0.00014899,2]
[341928001,1731303041053,-1064.116199,0.00014899,2]
[341928002,1731303041064,-1064.116199,0.00014899,2]
[341928003,1731303041074,-1064.116199,0.00014899,2]
[341928004,1731303041083,-1064.116199,0.00014899,2]
[341928005,1731303041095,-1064.116199,0.00014899,2]
[341928006,1731303041106,-1064.116199,0.00014899,2]
[341928007,1731303041117,-151.0,0.00014899,2]
[341928008,1731303041129,-300.196969,0.00014899,2]
[341928009,1731303041140,-161.304622,0.00014899,2]
[341928010,1731303041151,-151.0,0.00014899,2]
[341928011,1731303041163,-151.0,0.00014899,2]
[341928012,1731303041175,-172.899557,0.00014899,2]
[341928013,1731303041189,-151.0,0.00014899,2]
[341928014,1731303041200,-152.215872,0.00014899,2]
[341928015,1731303041211,-151.0,0.00014899,2]
[341928016,1731303041222,-599.41493675,0.00014899,2]
[341928017,1731303041233,-151.0,0.00014899,2]
[341928018,1731303041244,-151.0,0.00014899,2]
[341928019,1731303041258,-392.65643171,0.00014899,2]
[341928020,1731303041269,-462.632426,0.00014899,2]
[341928021,1731303041280,-500.0,0.00014899,2]
[341928022,1731303041292,-462.632426,0.00014899,2]
[341928023,1731303041303,-500.0,0.00014899,2]
[341928024,1731303041315,-1135.65295,0.00014899,2]
[341928025,1731303041327,-1135.65295,0.00014899,2]
[341928026,1731303041337,-1135.65295,0.00014899,2]
[341928027,1731303041348,-1135.65295,0.00014899,2]
[341928028,1731303041359,-500.0,0.00014899,2]
[341928029,1731303041370,-151.0,0.00014899,2]
[341928030,1731303041383,-151.0,0.00014899,2]
[341928031,1731303041393,-151.0,0.00014899,2]
[341928034,1731303041404,-151.0,0.00014899,2]
[341928035,1731303041415,-151.0,0.00014899,2]
[341928036,1731303041425,-151.0,0.00014899,2]
[341928037,1731303041435,-162.303631,0.00014899,2]
[341928038,1731303041446,-162.303631,0.00014899,2]
[341928039,1731303041456,-500.0,0.00014899,2]
[341928040,1731303041467,-162.303631,0.00014899,2]
[341928041,1731303041480,-162.303631,0.00014899,2]
[341928042,1731303041492,-234.638101,0.00014899,2]
[341928043,1731303041506,-234.638101,0.00014899,2]
[341928044,1731303041516,-234.638101,0.00014899,2]
[341928045,1731303041526,-234.638101,0.00014899,2]
[341928046,1731303041536,-259.941846,0.00014899,2]
[341928047,1731303041546,-259.941846,0.00014899,2]
[341928048,1731303041556,-259.941846,0.00014899,2]
[341928049,1731303041567,-259.941846,0.00014899,2]
[341928050,1731303041578,-151.0,0.00014899,2]
[341928051,1731303041589,-151.0,0.00014899,2]
[341928052,1731303041600,-261.637858,0.00014899,2]
[341928053,1731303041611,-375.507978,0.00014899,2]
[341928054,1731303041621,-375.507978,0.00014899,2]
[341928055,1731303041631,-375.507978,0.00014899,2]
[341928056,1731303041640,-375.507978,0.00014899,2]
[341928057,1731303041651,-500.0,0.00014899,2]
[341928058,1731303041660,-1610.27,0.00014899,2]
[341928059,1731303041672,-513.5,0.00014899,2]
[341928060,1731303041682,-513.5,0.00014899,2]
[341928061,1731303041692,-513.5,0.00014899,2]
[341928062,1731303041702,-236.067424,0.00014899,2]
[341928063,1731303041712,-236.067424,0.00014899,2]
[341928064,1731303041722,-500.0,0.00014899,2]
[341928065,1731303041732,-500.0,0.00014899,2]
[341928066,1731303041743,-500.0,0.00014899,2]
[341928067,1731303041756,-151.0,0.00014899,2]
[341928068,1731303041766,-236.067424,0.00014899,2]
[341928069,1731303041777,-236.067424,0.00014899,2]
[341928070,1731303041787,-151.0,0.00014899,2]
[341928071,1731303041798,-331.86,0.00014899,2]
[341928072,1731303041811,-151.0,0.00014899,2]
[341928073,1731303041824,-500.0,0.00014899,2]
[341928074,1731303041834,-500.0,0.00014899,2]
[341928075,1731303041845,-370.58937913,0.00014899,2]
[341928076,1731303041855,-151.0,0.00014899,2]
[341928077,1731303041865,-9152.9,0.00014899,2]
[341928078,1731303041877,-3681.26798375,0.00014899,2]
[341928079,1731303041893,-5471.63201625,0.00014899,2]
[341928080,1731303041903,-9152.9,0.00014899,2]
[341928081,1731303041914,-500.0,0.00014899,2]
[341928082,1731303041924,-4419.215536,0.00014899,2]
[341928083,1731303041934,-4419.215536,0.00014899,2]
[341928084,1731303041944,-4419.215536,0.00014899,2]
[341928085,1731303041954,-4419.215536,0.00014899,2]
[341928086,1731303041964,-429.88,0.00014899,2]
[341928087,1731303041974,-151.0,0.00014899,2]
[341928088,1731303041984,-151.0,0.00014899,2]
[341928089,1731303041994,-151.0,0.00014899,2]
[341928090,1731303042006,-151.0,0.00014899,2]
[341928091,1731303042016,-151.0,0.00014899,2]
[341928092,1731303042027,-151.0,0.00014899,2]
[341928093,1731303042037,-151.0,0.00014899,2]
[341928094,1731303042047,-151.0,0.00014899,2]
[341928095,1731303042058,-151.0,0.00014899,2]
[341928096,1731303042068,-151.0,0.00014899,2]
[341928097,1731303042079,-500.0,0.00014899,2]
[341928098,1731303042090,-151.0,0.00014899,2]
[341928099,1731303042101,-262.001781,0.00014899,2]
[341928100,1731303042111,-1939.93,0.00014899,2]
[341928101,1731303042121,-262.001781,0.00014899,2]
[341928102,1731303042132,-500.0,0.00014899,2]
[341928103,1731303042143,-466.07,0.00014899,2]
[341928104,1731303042154,-151.0,0.00014899,2]
[341928105,1731303042164,-7498.68,0.00014899,2]
[341928106,1731303042175,-7498.68,0.00014899,2]
[341928107,1731303042186,-151.0,0.000149,2]
[341928108,1731303042197,-151.0,0.000149,2]
[341928109,1731303042208,-158.514553,0.000149,2]
[341928110,1731303042219,-151.0,0.000149,2]
[341928111,1731303042230,-190.256773,0.000149,2]
[341928112,1731303042241,-151.0,0.000149,2]
[341928113,1731303042254,-151.0,0.000149,2]
[341928114,1731303042265,-2014.37658446,0.000149,2]
[341928115,1731303042276,-2014.37658446,0.000149,2]
[341928116,1731303042287,-2014.37658446,0.000149,2]
[341928117,1731303042297,-2014.37658446,0.000149,2]
[341928118,1731303042308,-2014.37658446,0.000149,2]
[341928119,1731303042318,-2014.37658446,0.000149,2]
[341928120,1731303042329,-2014.37658446,0.000149,2]
[341928121,1731303042340,-2014.37658446,0.000149,2]
[341928122,1731303042350,-2014.37658446,0.000149,2]
[341928124,1731303042360,-2014.37658446,0.000149,2]
[341928125,1731303042370,-2014.37658446,0.000149,2]
[341928126,1731303042380,-2014.37658446,0.000149,2]
[341928127,1731303042390,-2014.37658446,0.000149,2]
[341928128,1731303042400,-2014.37658446,0.000149,2]
[341928129,1731303042410,-2014.37658446,0.000149,2]
[341928131,1731303042420,-2014.37658446,0.000149,2]
[341928132,1731303042430,-2014.37658446,0.000149,2]
[341928133,1731303042441,-2014.37658446,0.000149,2]
[341928134,1731303042452,-2014.37658446,0.000149,2]
[341928135,1731303042462,-2014.37,0.000149,2]
[341928136,1731303042472,-3021.56487669,0.000149,2]
[341928137,1731303042483,-3021.56487669,0.000149,2]
[341928138,1731303042493,-3021.56487669,0.000149,2]
[341928139,1731303042506,-3021.56487669,0.000149,2]
[341928140,1731303042517,-3021.56487669,0.000149,2]
[341928141,1731303042527,-3021.56487669,0.000149,2]
[341928142,1731303042537,-3021.56487669,0.000149,2]
[341928143,1731303042547,-3021.56487669,0.000149,2]
[341928144,1731303042556,-3021.56487669,0.000149,2]
[341928145,1731303042567,-3021.56487669,0.000149,2]
[341928146,1731303042577,-3021.56487669,0.000149,2]
[341928147,1731303042587,-1615.08929551,0.000149,2]
[341928150,1731303043068,-550.50093868,0.000149,2]
[341928151,1731303043357,-290.0,0.00014782,2]
[341928152,1731303043467,-10.0,0.00014782,2]
[341928153,1731303043476,-575.81133876,0.00014878,2]
[341928154,1731303043486,-507.04576969,0.00014898,2]
[341928155,1731303043495,-7498.68,0.00014899,2]
[341928156,1731303043508,-855.9746425,0.000149,2]
[341928157,1731303043518,-3021.56487669,0.000149,2]
[341928158,1731303043527,-250.82969613,0.000149,2]
[341928159,1731303043538,-1895.51698183,0.000149,2]
[341928160,1731303045169,-875.21819873,0.000149,2]
[341928161,1731303045179,-2160.77861325,0.000149,2]
[341928170,1731303045433,-381.87693247,0.00014898,2]
[341928173,1731303045445,-118.12306753,0.00014898,2]
[341928175,1731303045455,-156.5544681,0.00014898,2]
[341928177,1731303045464,-418.40011854,0.00014898,2]
[341928182,1731303045614,-97.16087243,0.00014898,2]
[341928183,1731303045624,-860.78626344,0.000149,2]
[341928184,1731303045634,-3021.56487669,0.000149,2]
[341928185,1731303045643,-1940.90472002,0.000149,2]
[341928186,1731303045655,-1080.66015667,0.000149,2]
[341928187,1731303045664,-3021.56487669,0.000149,2]
[341928188,1731303045674,-172.77567461,0.000149,2]
[341928190,1731303171209,227.43,0.00011913,2]
[341928191,1731303295701,-300.0,0.00013832,2]
[341928192,1731303295724,-17658.51,0.00013833,2]
[341928193,1731303295745,-160.99,0.00013976,2]
[341928194,1731303295766,-227.43,0.00014177,2]
[341928195,1731303295787,-950.43222849,0.00014675,2]
[341928196,1731303295807,-160.99,0.00014675,2]
[341928197,1731303295830,-150.0,0.00014726,2]
[341928198,1731303295851,-150.0,0.00014734,2]
[341928199,1731303295876,-150.0,0.00014734,2]
[341928200,1731303295898,-150.0,0.00014737,2]
[341928201,1731303295921,-204.51456952,0.00014738,2]
[341928202,1731303295942,-29737.13320199,0.00014738,2]
[341928203,1731303298080,-262.85679801,0.00014738,2]
[341928207,1731303422144,558.26,0.00013845,2]
[341928208,1731303432275,160.02,0.00013845,2]
[341928209,1731303471148,-152.0,0.00020708,31]
[341928210,1731303499994,250.0,0.00013845,2]
[341928211,1731303514801,1000.0,0.00013843,2]
[341928212,1731303597316,400.0,0.000147,2]
[341928213,1731303632460,315.0,0.000147,3]
[341928214,1731303656379,255.04,0.00013851,2]
[341928215,1731303673038,150.0,0.00014738,2]
[341928216,1731303691231,315.91,0.000147,2]
[341928219,1731303817300,168.68,0.00013849,2]
[341928220,1731303879264,163.87,0.0001385,2]
[341928223,1731303939916,204.68,0.00011927,2]
[341928224,1731303940339,204.68,0.00014191,2]
[341928228,1731304140544,405.34,0.00013845,2]
[341928229,1731304231562,-150.0,0.0001474,2]
[341928230,1731304231572,-150.0,0.00014744,2]
[341928231,1731304231581,-475.87557787,0.00014745,2]
[341928232,1731304231679,-896.52,0.00014745,2]
[341928233,1731304231690,-127.60442213,0.00014745,2]
[341928234,1731304231699,-150.0,0.00014747,2]
[341928235,1731304231709,-150.0,0.00014756,2]
[341928236,1731304231718,-150.0,0.00014759,2]
[341928237,1731304231728,-150.0,0.00014762,2]
[341928238,1731304231737,-150.0,0.00014769,2]
[341928239,1731304231746,-74.85105599,0.00014774,2]
[341928240,1731304231757,-89.01894401,0.00014774,2]
[341928241,1731304231766,-150.0,0.00014791,2]
[341928242,1731304231775,-90.12365927,0.00014791,2]
[341928243,1731304231795,-300.0,0.00014791,2]
[341928244,1731304231806,-290.832,0.00014791,2]
[341928245,1731304231934,-153.83434073,0.00014791,2]
[341928246,1731304231943,-150.0,0.00014797,2]
[341928247,1731304231952,-150.0,0.00014798,2]
[341928248,1731304231961,-136.32635103,0.00014798,2]
[341928249,1731304231972,-1336.80364897,0.00014798,2]
[341928250,1731304231982,-150.0,0.00014798,2]
[341928251,1731304231991,-582.83863499,0.00014799,2]
[341928252,1731304232003,-32207.30056501,0.00014799,2]
[341928253,1731304232012,-965.0166,0.00014799,2]
[341928254,1731304232022,-581.1413462,0.00014799,2]
[341928256,1731304232031,-200.0,0.000148,2]
[341928258,1731304232044,-15234.92059994,0.000148,2]
[341928262,1731304237554,-2836.357,0.000148,2]
[341928263,1731304237627,-264.24,0.000148,2]
[341928264,1731304237639,-1002.10843179,0.000148,2]
[341928265,1731304237651,-2204.92451438,0.000148,2]
[341928266,1731304237662,-721.52433466,0.000148,2]
[341928267,1731304237673,-1016.61,0.000148,2]
[341928268,1731304237684,-1715.6453042,0.000148,2]
[341928269,1731304237695,-6214.9253682,0.000148,2]
[341928270,1731304237721,-358.33485164,0.000148,2]
[341928271,1731304237742,-316.89823426,0.000148,2]
[341928272,1731304237754,-566.76354058,0.000148,2]
[341928273,1731304237766,-478.31959918,0.000148,2]
[341928274,1731304237777,-540.65357155,0.000148,2]
[341928275,1731304237788,-584.86865308,0.000148,2]
[341928276,1731304237830,-882.07280673,0.000148,2]
[341928277,1731304237842,-3772.21738981,0.000148,2]
[341928278,1731304237852,-620.69566428,0.000148,2]
[341928279,1731304237907,-9455.58307413,0.000148,2]
[341928280,1731304237920,-5275.00911855,0.000148,2]
[341928281,1731304237931,-1989.30385561,0.000148,2]
[341928289,1731304239659,-668.235384,0.000148,2]
[341928290,1731304239740,-276.00165,0.000148,2]
[341928294,1731304242757,-11022.60776492,0.000148,2]
[341928295,1731304242834,-9975.20898851,0.000148,2]
[341928296,1731304242843,-601.49291238,0.000148,2]
[341928297,1731304242853,-150.0,0.00014802,2]
[341928298,1731304242862,-150.0,0.00014803,2]
[341928299,1731304242871,-150.0,0.00014805,2]
[341928300,1731304242880,-300.0,0.0001481,2]
[341928301,1731304242890,-581.14134615,0.0001481,2]
[341928302,1731304242899,-150.0,0.00014811,2]
[341928303,1731304242908,-1500.0,0.00014813,2]
[341928304,1731304242917,-581.14134615,0.00014821,2]
[341928305,1731304242927,-150.0,0.00014824,2]
[341928306,1731304242936,-150.0,0.00014825,2]
[341928307,1731304242945,-150.0,0.00014826,2]
[341928308,1731304242955,-581.14134615,0.00014833,2]
[341928309,1731304242964,-581.14134615,0.00014844,2]
[341928310,1731304242973,-150.0,0.00014846,2]
[341928311,1731304242982,-150.110806,0.00014848,2]
[341928312,1731304242991,-150.0,0.00014852,2]
[341928313,1731304243000,-150.0,0.00014853,2]
[341928314,1731304243010,-285.85455768,0.00014854,2]
[341928315,1731304243019,-581.14134615,0.00014855,2]
[341928316,1731304243029,-150.0,0.00014856,2]
[341928317,1731304243038,-636.2304888,0.00014859,2]
[341928318,1731304243052,-581.14134615,0.00014866,2]
[341928319,1731304243061,-1657.58888681,0.0001487,2]
[341928320,1731304243071,-150.0,0.00014872,2]
[341928321,1731304243081,-581.14134615,0.00014878,2]
[341928322,1731304243092,-201.5938,0.00014886,2]
[341928323,1731304243101,-705.942,0.00014888,2]
[341928324,1731304243111,-581.14134615,0.00014889,2]
[341928325,1731304243122,-150.0,0.0001489,2]
[341928326,1731304243132,-150.0,0.00014892,2]
[341928327,1731304243141,-150.0,0.00014897,2]
[341928328,1731304243151,-500.0,0.00014898,2]